fUST/lending_fUST_20260109
["ID","MTS","AMOUNT","RATE_DAILY","PERIOD"]
[401044936,1767892281566,-151.0,0.00030958,31]
[401044937,1767892281575,-178.75645,0.00030958,31]
[401044938,1767892281586,-500.0,0.00030958,5]
[401044939,1767892281595,-1899.8,0.00030958,5]
[401044940,1767892281605,-9194.49,0.00030958,3]
[401044941,1767892281618,-8762.91,0.00030958,5]
[401044942,1767892281637,-500.65,0.00030958,5]
[401044943,1767892281647,-2464.53,0.00030958,5]
[401044944,1767892281657,-1284.28,0.00030958,5]
[401044945,1767892281666,-4093.0,0.00030958,5]
[401044946,1767892281676,-500.0,0.00030958,5]
[401044947,1767892281686,-500.0,0.00030958,5]
[401044948,1767892281695,-1841.0,0.00030977,2]
[401044949,1767892281704,-842.26655063,0.00031,120]
[401044950,1767892281713,-1145.67966361,0.00031,120]
[401044951,1767892281723,-187.16638295,0.00031,120]
[401044952,1767892281732,-1152.99,0.00031,2]
[401044953,1767892281742,-1041.66666667,0.00031,10]
[401044954,1767892281752,-1840.0,0.00031025,2]
[401044955,1767892281763,-500.0,0.00031072,7]
[401044956,1767892281772,-5000.0,0.0003108,2]
[401044957,1767892281781,-1152.99,0.000311,2]
[401044958,1767892281791,-1152.99,0.000311,2]
[401044959,1767892281800,-164.68,0.000311,2]
[401044960,1767892281809,-2373.26906487,0.00031145,2]
[401044961,1767892281819,-1841.0,0.00031146,2]
[401044962,1767892281828,-1841.0,0.0003117,7]
[401044963,1767892281837,-500.0,0.00031177,7]
[401044964,1767892281847,-2000.0,0.0003119,7]
[401044965,1767892281856,-1152.99,0.000312,2]
[401044966,1767892281865,-1152.99,0.000312,2]
[401044967,1767892281874,-1200.0,0.0003122,7]
[401044968,1767892281884,-500.0,0.00031232,5]
[401044969,1767892281893,-500.0,0.00031232,5]
[401044970,1767892281903,-540.45,0.00031232,5]
[401044971,1767892281913,-487.41045214,0.00031232,5]
[401044972,1767892281923,-500.0,0.00031232,5]
[401044973,1767892281933,-557.97,0.00031232,5]
[401044974,1767892281942,-500.0,0.00031232,5]
[401044975,1767892281951,-500.0,0.00031232,5]
[401044976,1767892281961,-500.0,0.00031232,5]
[401044977,1767892281970,-500.0,0.00031232,5]
[401044978,1767892281980,-517.63,0.00031232,5]
[401044979,1767892281990,-692.57,0.00031232,5]
[401044980,1767892281998,-2443.5,0.00031232,5]
[401044981,1767892282008,-500.0,0.00031232,5]
[401044982,1767892282017,-617.23,0.00031232,5]
[401044983,1767892282027,-487.96924619,0.00031232,5]
[401044984,1767892282036,-152.763427,0.00031232,31]
[401044985,1767892282045,-500.0,0.00031232,5]
[401044986,1767892282056,-1070.81,0.00031232,5]
[401044987,1767892282065,-622.20825,0.00031232,31]
[401044988,1767892282075,-1384.74,0.00031232,5]
[401044989,1767892282084,-622.20825,0.00031232,31]
[401044990,1767892282093,-600.7,0.00031232,5]
[401044991,1767892282103,-622.20825,0.00031232,31]
[401044992,1767892282112,-622.20825,0.00031232,31]
[401044993,1767892282121,-500.0,0.00031232,5]
[401044994,1767892282130,-1222.595979,0.00031232,31]
[401044995,1767892282140,-522.121584,0.00031232,31]
[401044996,1767892282150,-1222.595979,0.00031232,31]
[401044997,1767892282159,-522.121584,0.00031232,31]
[401044998,1767892282168,-1222.595979,0.00031232,31]
[401044999,1767892282178,-522.121584,0.00031232,31]
[401045000,1767892282186,-1222.595979,0.00031232,31]
[401045001,1767892282196,-151.0,0.00031232,31]
[401045002,1767892282205,-522.121584,0.00031232,31]
[401045003,1767892282215,-151.0,0.00031232,31]
[401045004,1767892282224,-151.0,0.00031232,31]
[401045005,1767892282233,-183.558633,0.00031232,31]
[401045006,1767892282243,-183.558633,0.00031232,31]
[401045007,1767892282251,-500.0,0.00031232,5]
[401045008,1767892282260,-183.558633,0.00031232,31]
[401045009,1767892282269,-500.0,0.00031232,5]
[401045010,1767892282280,-151.0,0.00031232,31]
[401045011,1767892282290,-183.558633,0.00031232,31]
[401045012,1767892282299,-151.0,0.00031232,31]
[401045013,1767892282307,-151.0,0.00031232,31]
[401045014,1767892282316,-500.0,0.00031232,2]
[401045015,1767892282327,-341.324064,0.00031232,28]
[401045016,1767892282336,-341.324064,0.00031232,28]
[401045017,1767892282345,-341.324064,0.00031232,28]
[401045018,1767892282354,-341.324064,0.00031232,28]
[401045019,1767892282364,-2631.52,0.00031232,5]
[401045020,1767892282374,-510.49,0.00031232,5]
[401045021,1767892282383,-500.0,0.00031232,5]
[401045022,1767892282394,-1899.8,0.00031232,5]
[401045023,1767892282403,-9194.49,0.00031232,3]
[401045024,1767892282412,-8762.91,0.00031232,5]
[401045025,1767892282421,-500.65,0.00031232,5]
[401045026,1767892282430,-2464.53,0.00031232,5]
[401045027,1767892282440,-1284.28,0.00031232,5]
[401045028,1767892282449,-4093.0,0.00031232,5]
[401045029,1767892282458,-500.0,0.00031232,5]
[401045030,1767892282467,-601.4235728,0.00031232,5]
[401045031,1767892282476,-1840.0,0.00031235,7]
[401045032,1767892282485,-1366.0,0.00031252,2]
[401045033,1767892282494,-628.0,0.00031252,2]
[401045034,1767892282503,-2146.0,0.00031252,2]
[401045035,1767892282511,-1200.0,0.00031269,7]
[401045036,1767892282521,-700.8992001,0.00031274,7]
[401045037,1767892282530,-1152.99,0.000313,2]
[401045038,1767892282539,-1840.0,0.00031316,7]
[401045039,1767892282549,-2373.26906487,0.00031328,2]
[401045040,1767892282559,-1200.0,0.00031338,7]
[401045041,1767892282568,-235.0,0.00031342,45]
[401045042,1767892282578,-1536.80581746,0.00031357,2]
[401045043,1767892282587,-1840.0,0.00031371,7]
[401045044,1767892282597,-151.0,0.00031372,7]
[401045045,1767892282606,-151.0,0.00031372,7]
[401045046,1767892282615,-151.0,0.00031372,7]
[401045047,1767892282624,-151.0,0.00031372,31]
[401045048,1767892282634,-153.60505,0.00031372,31]
[401045049,1767892282643,-1152.99,0.000314,2]
[401045050,1767892282652,-1152.99,0.000314,2]
[401045051,1767892282662,-3576.76245303,0.00031406,2]
[401045052,1767892282671,-6100.49946274,0.00031428,2]
[401045053,1767892282680,-881.0,0.0003145,30]
[401045054,1767892282690,-303.0,0.0003145,30]
[401045055,1767892282699,-405.0,0.0003145,30]
[401045056,1767892282708,-281.28077948,0.00031474,7]
[401045057,1767892282717,-1200.0,0.00031475,7]
[401045058,1767892282726,-1502.08,0.000315,14]
[401045059,1767892282735,-1152.99,0.000315,2]
[401045060,1767892282745,-500.0,0.00031506,5]
[401045061,1767892282754,-500.0,0.00031506,5]
[401045062,1767892282763,-540.45,0.00031506,5]
[401045063,1767892282772,-557.97,0.00031506,5]
[401045064,1767892282782,-500.0,0.00031506,5]
[401045065,1767892282791,-309.68,0.00031506,31]
[401045066,1767892282800,-500.0,0.00031506,5]
[401045067,1767892282809,-475.20903068,0.00031506,5]
[401045068,1767892282819,-517.63,0.00031506,5]
[401045069,1767892282829,-692.57,0.00031506,5]
[401045070,1767892282838,-2443.5,0.00031506,5]
[401045071,1767892282847,-500.0,0.00031506,5]
[401045072,1767892282856,-617.23,0.00031506,5]
[401045073,1767892282866,-500.0,0.00031506,5]
[401045074,1767892282875,-1070.81,0.00031506,5]
[401045075,1767892282884,-1384.74,0.00031506,5]
[401045076,1767892282896,-600.7,0.00031506,5]
[401045077,1767892282905,-500.0,0.00031506,5]
[401045078,1767892282914,-500.0,0.00031506,5]
[401045079,1767892282923,-500.0,0.00031506,5]
[401045080,1767892282932,-500.0,0.00031506,2]
[401045081,1767892282942,-2049.07,0.00031506,8]
[401045082,1767892282952,-2631.52,0.00031506,5]
[401045083,1767892282961,-510.49,0.00031506,5]
[401045084,1767892282970,-500.0,0.00031506,5]
[401045085,1767892282979,-1899.8,0.00031506,5]
[401045086,1767892282989,-9194.49,0.00031506,3]
[401045087,1767892282999,-8762.91,0.00031506,5]
[401045088,1767892283008,-500.65,0.00031506,5]
[401045089,1767892283017,-2464.53,0.00031506,5]
[401045090,1767892283027,-1284.28,0.00031506,5]
[401045091,1767892283035,-4093.0,0.00031506,5]
[401045092,1767892283045,-500.0,0.00031506,5]
[401045093,1767892283055,-2373.26906487,0.00031524,2]
[401045094,1767892283064,-1840.0,0.00031553,2]
[401045095,1767892283074,-727.0,0.000316,3]
[401045096,1767892283186,-1152.99,0.000316,2]
[401045097,1767892283196,-1152.99,0.000316,2]
[401045098,1767892283206,-164.68,0.000316,2]
[401045099,1767892283215,-1200.0,0.00031603,7]
[401045100,1767892283224,-1200.0,0.0003164,7]
[401045101,1767892283234,-509.0,0.00031644,14]
[401045102,1767892283243,-916.0706166,0.00031646,27]
[401045103,1767892283253,-1152.99,0.000317,2]
[401045104,1767892283262,-1152.99,0.000317,2]
[401045105,1767892283271,-1200.0,0.00031762,7]
[401045106,1767892283282,-500.0,0.0003178,5]
[401045107,1767892283292,-631.1155383,0.0003178,5]
[401045108,1767892283302,-540.45,0.0003178,5]
[401045109,1767892283311,-557.97,0.0003178,5]
[401045110,1767892283320,-296.04074694,0.0003178,5]
[401045111,1767892283331,-517.63,0.0003178,5]
[401045112,1767892283340,-692.57,0.0003178,5]
[401045113,1767892283350,-2443.5,0.0003178,5]
[401045114,1767892283360,-151.0,0.0003178,31]
[401045115,1767892283370,-500.0,0.0003178,5]
[401045116,1767892283379,-151.0,0.0003178,31]
[401045117,1767892283391,-172.705914,0.0003178,31]
[401045118,1767892283400,-189.075092,0.0003178,31]
[401045119,1767892283410,-172.705914,0.0003178,31]
[401045120,1767892283419,-189.075092,0.0003178,31]
[401045121,1767892283430,-172.705914,0.0003178,31]
[401045122,1767892283439,-189.075092,0.0003178,31]
[401045123,1767892283448,-172.705914,0.0003178,31]
[401045124,1767892283458,-189.075092,0.0003178,31]
[401045125,1767892283467,-617.23,0.0003178,5]
[401045126,1767892283477,-151.0,0.0003178,31]
[401045127,1767892283486,-500.0,0.0003178,5]
[401045128,1767892283496,-1070.81,0.0003178,5]
[401045129,1767892283505,-1384.74,0.0003178,5]
[401045130,1767892283514,-600.7,0.0003178,5]
[401045131,1767892283524,-500.0,0.0003178,5]
[401045132,1767892283533,-500.0,0.0003178,5]
[401045133,1767892283543,-633.22712355,0.0003178,5]
[401045134,1767892283552,-500.0,0.0003178,2]
[401045135,1767892283562,-2631.52,0.0003178,5]
[401045136,1767892283573,-510.49,0.0003178,5]
[401045137,1767892283583,-151.0,0.0003178,31]
[401045138,1767892283592,-500.0,0.0003178,5]
[401045139,1767892283602,-1899.8,0.0003178,5]
[401045140,1767892283611,-151.0,0.0003178,2]
[401045141,1767892283621,-151.0,0.0003178,31]
[401045142,1767892283631,-151.0,0.0003178,31]
[401045143,1767892283644,-9194.49,0.0003178,3]
[401045144,1767892283654,-8762.91,0.0003178,5]
[401045145,1767892283664,-151.858704,0.0003178,31]
[401045146,1767892283674,-500.65,0.0003178,5]
[401045147,1767892283685,-2464.53,0.0003178,5]
[401045148,1767892283695,-1284.28,0.0003178,5]
[401045149,1767892283704,-4093.0,0.0003178,5]
[401045150,1767892283714,-500.0,0.0003178,5]
[401045151,1767892283724,-151.0,0.0003178,31]
[401045152,1767892283734,-191.094302,0.0003178,31]
[401045153,1767892283743,-151.0,0.0003178,31]
[401045154,1767892283754,-191.094302,0.0003178,31]
[401045155,1767892283764,-151.0,0.0003178,31]
[401045156,1767892283774,-191.094302,0.0003178,31]
[401045157,1767892283784,-191.094302,0.0003178,31]
[401045158,1767892283794,-227.192077,0.0003178,31]
[401045159,1767892283804,-182.749737,0.0003178,31]
[401045160,1767892283814,-182.749737,0.0003178,31]
[401045161,1767892283823,-182.749737,0.0003178,31]
[401045162,1767892283833,-182.749737,0.0003178,31]
[401045163,1767892283842,-1152.99,0.000318,2]
[401045164,1767892283852,-600.0,0.00031872,2]
[401045165,1767892283861,-2373.26906487,0.00031891,2]
[401045166,1767892283870,-842.26655063,0.000319,120]
[401045167,1767892283880,-1145.67966361,0.000319,120]
[401045168,1767892283889,-1152.99,0.000319,2]
[401045169,1767892283898,-1152.99,0.000319,2]
[401045170,1767892283908,-2200.0,0.00031919,7]
[401045171,1767892283918,-1840.0,0.00031935,2]
[401045172,1767892283927,-3709.10266379,0.00031954,2]
[401045173,1767892283937,-810.2,0.00031999,5]
[401045174,1767892283946,-1098.76,0.00032,30]
[401045175,1767892283956,-22833.95,0.00032,2]
[401045176,1767892283965,-161.70961374,0.00032,9]
[401045177,1767892283975,-1152.99,0.00032,2]
[401045178,1767892283984,-1152.99,0.00032,2]
[401045179,1767892283993,-1021.94341535,0.00032,7]
[401045180,1767892284003,-500.0,0.00032054,5]
[401045181,1767892284013,-540.45,0.00032054,5]
[401045182,1767892284022,-557.97,0.00032054,5]
[401045183,1767892284032,-309.68,0.00032054,32]
[401045184,1767892284042,-517.63,0.00032054,5]
[401045185,1767892284051,-692.57,0.00032054,5]
[401045186,1767892284060,-2443.5,0.00032054,5]
[401045187,1767892284070,-500.0,0.00032054,5]
[401045188,1767892284080,-617.23,0.00032054,5]
[401045189,1767892284089,-388.092813,0.00032054,31]
[401045190,1767892284099,-388.092813,0.00032054,31]
[401045191,1767892284108,-388.092813,0.00032054,31]
[401045192,1767892284118,-388.092813,0.00032054,31]
[401045193,1767892284127,-289.370538,0.00032054,31]
[401045194,1767892284138,-289.370538,0.00032054,31]
[401045195,1767892284147,-289.370538,0.00032054,31]
[401045196,1767892284156,-151.0,0.00032054,31]
[401045197,1767892284166,-289.370538,0.00032054,31]
[401045198,1767892284175,-151.0,0.00032054,31]
[401045199,1767892284185,-500.0,0.00032054,5]
[401045200,1767892284195,-1070.81,0.00032054,5]
[401045201,1767892284205,-1384.74,0.00032054,5]
[401045202,1767892284214,-600.7,0.00032054,5]
[401045203,1767892284225,-500.0,0.00032054,5]
[401045204,1767892284235,-345.5615976,0.00032054,5]
[401045205,1767892284244,-500.0,0.00032054,2]
[401045206,1767892284255,-2631.52,0.00032054,5]
[401045207,1767892284264,-510.49,0.00032054,5]
[401045208,1767892284275,-500.0,0.00032054,5]
[401045209,1767892284288,-1899.8,0.00032054,5]
[401045210,1767892284298,-9194.49,0.00032054,3]
[401045211,1767892284307,-8762.91,0.00032054,5]
[401045212,1767892284319,-500.65,0.00032054,5]
[401045213,1767892284328,-2464.53,0.00032054,5]
[401045214,1767892284338,-1284.28,0.00032054,5]
[401045215,1767892284348,-4093.0,0.00032054,5]
[401045216,1767892284359,-500.0,0.00032054,5]
[401045217,1767892284368,-1098.76,0.0003206,30]
[401045218,1767892284378,-2000.0,0.00032071,7]
[401045219,1767892284388,-1152.99,0.000321,2]
[401045220,1767892284397,-1854.894412,0.000321,7]
[401045221,1767892284407,-164.68,0.000321,2]
[401045222,1767892284416,-1000.0,0.0003212,7]
[401045223,1767892284425,-1000.0,0.0003214,7]
[401045224,1767892284435,-1000.0,0.0003216,7]
[401045225,1767892284444,-1000.0,0.0003218,7]
[401045226,1767892284453,-1152.99,0.000322,2]
[401045227,1767892284463,-1152.99,0.000322,2]
[401045228,1767892284472,-1000.0,0.000322,7]
[401045229,1767892284481,-600.0,0.00032204,2]
[401045230,1767892284490,-1000.0,0.0003222,7]
[401045231,1767892284500,-160.0,0.0003224,11]
[401045232,1767892284510,-162.0,0.0003224,11]
[401045233,1767892284520,-1000.0,0.0003224,7]
[401045234,1767892284530,-1000.0,0.0003226,7]
[401045235,1767892284540,-1000.0,0.0003228,7]
[401045236,1767892284549,-1206.97354,0.0003228,7]
[401045237,1767892284558,-1152.99,0.000323,2]
[401045238,1767892284567,-1000.0,0.000323,7]
[401045239,1767892284577,-1000.0,0.000323,7]
[401045240,1767892284587,-2373.26906501,0.00032313,2]
[401045241,1767892284597,-500.0,0.00032328,5]
[401045242,1767892284608,-540.45,0.00032328,5]
[401045243,1767892284618,-500.0,0.00032328,7]
[401045244,1767892284628,-500.0,0.00032328,7]
[401045245,1767892284638,-500.0,0.00032328,7]
[401045246,1767892284647,-500.0,0.00032328,7]
[401045247,1767892284657,-500.0,0.00032328,7]
[401045248,1767892284666,-500.0,0.00032328,7]
[401045249,1767892284676,-500.0,0.00032328,7]
[401045250,1767892284686,-500.0,0.00032328,7]
[401045251,1767892284695,-500.0,0.00032328,7]
[401045252,1767892284704,-491.97410906,0.00032328,7]
[401045253,1767892284713,-841.7685895,0.00032328,5]
[401045254,1767892284722,-3367.074358,0.00032328,5]
[401045255,1767892284732,-557.97,0.00032328,5]
[401045256,1767892284742,-449.98950096,0.00032328,5]
[401045257,1767892284751,-1799.95800385,0.00032328,5]
[401045258,1767892284761,-4049.90550866,0.00032328,5]
[401045259,1767892284771,-517.63,0.00032328,5]
[401045260,1767892284781,-692.57,0.00032328,5]
[401045261,1767892284790,-2443.5,0.00032328,5]
[401045262,1767892284799,-500.0,0.00032328,5]
[401045263,1767892284809,-617.23,0.00032328,5]
[401045264,1767892284818,-7568.3413882,0.00032328,5]
[401045265,1767892284827,-578.33356977,0.00032328,5]
[401045266,1767892284838,-1070.81,0.00032328,5]
[401045267,1767892284847,-1384.74,0.00032328,5]
[401045268,1767892284856,-600.7,0.00032328,5]
[401045269,1767892284865,-500.0,0.00032328,5]
[401045270,1767892284875,-7192.63218338,0.00032328,5]
[401045271,1767892284884,-500.0,0.00032328,2]
[401045272,1767892284998,-2631.52,0.00032328,5]
[401045273,1767892285008,-510.49,0.00032328,5]
[401045274,1767892285018,-500.0,0.00032328,5]
[401045275,1767892285028,-1899.8,0.00032328,5]
[401045276,1767892285038,-9194.49,0.00032328,3]
[401045277,1767892285047,-8762.91,0.00032328,5]
[401045278,1767892285057,-500.65,0.00032328,5]
[401045279,1767892285066,-2464.53,0.00032328,5]
[401045280,1767892285076,-1284.28,0.00032328,5]
[401045281,1767892285085,-4093.0,0.00032328,5]
[401045282,1767892285094,-500.0,0.00032328,5]
[401045283,1767892285103,-1152.99,0.000324,2]
[401045284,1767892285112,-1152.99,0.000324,2]
[401045285,1767892285122,-1171.0,0.000324,120]
[401045286,1767892285131,-8875.19672302,0.0003249,10]
[401045287,1767892285141,-1063.76,0.000325,2]
[401045288,1767892285150,-1063.76,0.000325,2]
[401045289,1767892285159,-833.44,0.000325,2]
[401045290,1767892285168,-833.44,0.000325,2]
[401045291,1767892285177,-1344.71,0.000325,2]
[401045292,1767892285186,-1344.71,0.000325,2]
[401045293,1767892285195,-1152.99,0.000325,2]
[401045294,1767892285205,-1152.99,0.000325,2]
[401045295,1767892285214,-3846.33946235,0.00032502,2]
[401045296,1767892285223,-5000.0,0.00032524,2]
[401045297,1767892285233,-600.0,0.00032536,2]
[401045298,1767892285243,-200.0,0.00032594,120]
[401045299,1767892285252,-1063.76,0.000326,2]
[401045300,1767892285261,-833.44,0.000326,2]
[401045301,1767892285271,-1344.71,0.000326,2]
[401045302,1767892285280,-158.87,0.000326,2]
[401045303,1767892285292,-1152.99,0.000326,2]
[401045304,1767892285301,-164.68,0.000326,2]
[401045305,1767892285310,-500.0,0.00032602,5]
[401045306,1767892285319,-540.45,0.00032602,5]
[401045307,1767892285328,-557.97,0.00032602,5]
[401045308,1767892285337,-309.68,0.00032602,33]
[401045309,1767892285347,-517.63,0.00032602,5]
[401045310,1767892285358,-692.57,0.00032602,5]
[401045311,1767892285367,-2443.5,0.00032602,5]
[401045312,1767892285377,-604.81447668,0.00032602,5]
[401045313,1767892285387,-617.23,0.00032602,5]
[401045314,1767892285397,-1070.81,0.00032602,5]
[401045315,1767892285407,-1384.74,0.00032602,5]
[401045316,1767892285416,-600.7,0.00032602,5]
[401045317,1767892285425,-500.0,0.00032602,5]
[401045318,1767892285434,-500.0,0.00032602,2]
[401045319,1767892285444,-2631.52,0.00032602,5]
[401045320,1767892285453,-510.49,0.00032602,5]
[401045321,1767892285462,-500.0,0.00032602,5]
[401045322,1767892285471,-1899.8,0.00032602,5]
[401045323,1767892285481,-9194.49,0.00032602,3]
[401045324,1767892285491,-8762.91,0.00032602,5]
[401045325,1767892285500,-500.65,0.00032602,5]
[401045326,1767892285509,-2464.53,0.00032602,5]
[401045327,1767892285518,-1284.28,0.00032602,5]
[401045328,1767892285528,-4093.0,0.00032602,5]
[401045329,1767892285538,-466.88590557,0.00032602,5]
[401045330,1767892285547,-193.8322625,0.00032689,30]
[401045331,1767892285557,-153.0,0.00032689,30]
[401045332,1767892285566,-153.0,0.00032689,30]
[401045333,1767892285575,-153.0,0.00032689,30]
[401045334,1767892285584,-1063.76,0.000327,2]
[401045335,1767892285594,-1063.76,0.000327,2]
[401045336,1767892285603,-833.44,0.000327,2]
[401045337,1767892285612,-833.44,0.000327,2]
[401045338,1767892285622,-1344.71,0.000327,2]
[401045339,1767892285631,-1344.71,0.000327,2]
[401045340,1767892285645,-168.06,0.000327,2]
[401045341,1767892285654,-1152.99,0.000327,2]
[401045342,1767892285664,-1152.99,0.000327,2]
[401045343,1767892285673,-329442.18,0.000327,5]
[401045344,1767892285683,-100000.0,0.000327,5]
[401045345,1767892285692,-35714.28,0.000327,8]
[401045346,1767892285702,-777.0,0.000327,2]
[401045347,1767892285711,-200.0,0.00032707,120]
[401045348,1767892285720,-916.0706166,0.00032714,29]
[401045349,1767892285730,-200.0,0.00032785,120]
[401045350,1767892285740,-200.0,0.00032788,120]
[401045351,1767892285749,-1388.83546275,0.00032789,21]
[401045352,1767892285759,-1063.76,0.000328,2]
[401045353,1767892285769,-1063.76,0.000328,2]
[401045354,1767892285778,-833.44,0.000328,2]
[401045355,1767892285787,-833.44,0.000328,2]
[401045356,1767892285797,-1344.71,0.000328,2]
[401045357,1767892285806,-1344.71,0.000328,2]
[401045358,1767892285816,-1152.99,0.000328,2]
[401045359,1767892285825,-1152.99,0.000328,2]
[401045360,1767892285834,-200.0,0.0003283,120]
[401045361,1767892285844,-600.0,0.00032868,2]
[401045362,1767892285853,-10000.0,0.0003287,7]
[401045363,1767892285862,-500.0,0.00032876,5]
[401045364,1767892285871,-540.45,0.00032876,5]
[401045365,1767892285880,-557.97,0.00032876,5]
[401045366,1767892285893,-517.63,0.00032876,5]
[401045367,1767892285901,-692.57,0.00032876,5]
[401045368,1767892285911,-500.0,0.00032876,5]
[401045369,1767892285920,-500.0,0.00032876,5]
[401045370,1767892285929,-500.0,0.00032876,5]
[401045371,1767892285939,-500.0,0.00032876,5]
[401045372,1767892285947,-500.0,0.00032876,5]
[401045373,1767892285957,-500.0,0.00032876,5]
[401045374,1767892285965,-500.0,0.00032876,5]
[401045375,1767892285975,-500.0,0.00032876,5]
[401045376,1767892285983,-500.0,0.00032876,5]
[401045377,1767892285993,-2443.5,0.00032876,5]
[401045378,1767892286002,-617.23,0.00032876,5]
[401045379,1767892286012,-1070.81,0.00032876,5]
[401045380,1767892286022,-787.48966647,0.00032876,5]
[401045381,1767892286216,-597.25033353,0.00032876,5]
[401045382,1767892286225,-600.7,0.00032876,5]
[401045383,1767892286235,-500.0,0.00032876,5]
[401045384,1767892286244,-500.0,0.00032876,2]
[401045385,1767892286253,-2049.07,0.00032876,120]
[401045386,1767892286262,-606.00054911,0.00032876,5]
[401045387,1767892286317,189.87,7.311e-05,2]
[401045388,1767892286430,284.8,7.643e-05,2]
[401045389,1767892286576,379.73,7.976e-05,2]
[401045390,1767892287558,-3e-08,0.00025926,2]
[401045391,1767892287704,474.67,8.308e-05,2]
[401045392,1767892287784,569.6,8.64e-05,2]
[401045393,1767892287876,554.0,8.973e-05,2]
[401045394,1767892287899,110.53,8.973e-05,2]
[401045395,1767892289254,313.46645788,9.258e-05,2]
[401045396,1767892289335,500.0,9.258e-05,2]
[401045397,1767892289384,500.0,9.258e-05,2]
[401045398,1767892289445,500.0,9.258e-05,2]
[401045399,1767892289536,500.0,9.258e-05,2]
[401045400,1767892289580,500.0,9.258e-05,2]
[401045401,1767892289626,500.0,9.258e-05,2]
[401045402,1767892289682,500.0,9.258e-05,2]
[401045403,1767892289712,500.0,9.258e-05,2]
[401045404,1767892289762,500.0,9.258e-05,2]
[401045405,1767892289816,500.0,9.258e-05,2]
[401045406,1767892289931,500.0,9.258e-05,2]
[401045407,1767892290019,500.0,9.258e-05,2]
[401045408,1767892290114,500.0,9.258e-05,2]
[401045409,1767892290199,500.0,9.258e-05,2]
[401045410,1767892290268,500.0,9.258e-05,2]
[401045411,1767892290364,500.0,9.258e-05,2]
[401045412,1767892290405,500.0,9.258e-05,2]
[401045414,1767892290795,500.0,9.258e-05,2]
[401045415,1767892290824,500.0,9.258e-05,2]
[401045416,1767892290852,186.54354212,9.258e-05,2]
[401045417,1767892290873,313.45645788,9.258e-05,2]
[401045418,1767892290901,500.0,9.258e-05,2]
[401045419,1767892290935,500.0,9.258e-05,2]
[401045420,1767892291072,500.0,9.258e-05,2]
[401045421,1767892291101,500.0,9.258e-05,2]
[401045422,1767892291130,500.0,9.258e-05,2]
[401045423,1767892291162,513.64965406,9.258e-05,2]
[401045424,1767892291189,500.0,9.258e-05,2]
[401045425,1767892291217,500.0,9.258e-05,2]
[401045426,1767892291245,500.0,9.258e-05,2]
[401045427,1767892291274,500.0,9.258e-05,2]
[401045428,1767892291305,500.0,9.258e-05,2]
[401045429,1767892291334,500.0,9.258e-05,2]
[401045430,1767892291365,500.0,9.258e-05,2]
[401045431,1767892291394,570.00000001,9.258e-05,2]
[401045432,1767892291423,492.0414482,9.258e-05,2]
[401045433,1767892291456,250.0,9.258e-05,2]
[401045434,1767892291574,-759.47,9.305e-05,2]
[401045435,1767892300722,207.52198847,9.256e-05,2]
[401045436,1767892312153,495.28748222,9.258e-05,2]